bitfinex/quotes_BTCUSD_20240906
["timestamp","ask_amount","ask_price","bid_price","bid_amount"]
[1725586253366,0.99128114,56350.0,56349.0,0.159332]
[1725586254781,0.98128114,56350.0,56349.0,0.158332]
[1725586255254,0.015,56350.0,56349.0,0.159332]
[1725586255521,0.015,56350.0,56349.0,0.158332]
[1725586255522,0.538386,56350.0,56349.0,0.158332]
[1725586255744,0.541386,56350.0,56349.0,0.17510388]
[1725586255959,0.191462,56350.0,56349.0,0.17610388]
[1725586256184,0.546386,56350.0,56349.0,0.17610388]
[1725586256624,0.532386,56350.0,56349.0,0.17410388]
[1725586256836,0.532386,56350.0,56349.0,0.18010388]
[1725586256837,0.22178162,56350.0,56349.0,0.18010388]
[1725586257959,0.22178162,56350.0,56349.0,0.18610388]
[1725586258203,0.57670562,56350.0,56349.0,0.18610388]
[1725586259300,0.22178162,56350.0,56349.0,0.18610388]
[1725586259522,0.35492,56351.0,56349.0,0.18610388]
[1725586259523,0.177459,56351.0,56350.0,0.1554]
[1725586259766,0.532377,56351.0,56350.0,0.1554]
[1725586259983,0.532377,56351.0,56350.0,0.17220671]
[1725586260439,0.354905,56353.0,56351.0,0.0868]
[1725586260674,0.000816,56354.0,56351.0,0.0868]
[1725586260887,0.000816,56354.0,56353.0,0.177452]
[1725586261103,0.000816,56354.0,56353.0,0.1554]
[1725586261543,0.000816,56354.0,56353.0,0.17220671]
[1725586261950,0.178265,56354.0,56353.0,0.17220671]
[1725586262655,0.000816,56354.0,56353.0,0.34965871]
[1725586262871,0.000816,56354.0,56353.0,1.44092256]
[1725586264033,0.000816,56359.0,56358.0,1.397459]
[1725586264260,0.000816,56359.0,56358.0,2.06216483]
[1725586264510,0.000816,56359.0,56358.0,2.09891747]
[1725586264759,0.000816,56359.0,56358.0,2.10091747]
[1725586264978,0.22373316,56382.0,56378.0,0.177373]
[1725586265190,0.177372,56379.0,56375.0,0.177381]
[1725586265664,0.177372,56379.0,56377.0,0.0686]
[1725586265895,0.532114,56379.0,56378.0,0.0868]
[1725586266350,0.532114,56379.0,56378.0,0.1034999]
[1725586266785,0.177372,56379.0,56378.0,0.1034999]
[1725586267006,0.532114,56379.0,56378.0,0.1034999]
[1725586267629,0.177372,56379.0,56378.0,0.1034999]
[1725586268386,0.000816,56383.0,56380.0,1.042237]
[1725586268897,0.000816,56383.0,56380.0,1.419972]
[1725586269122,0.000816,56383.0,56380.0,1.43651738]
[1725586269356,0.000816,56383.0,56380.0,1.79125238]
[1725586269571,0.000816,56383.0,56382.0,1.40555745]
[1725586269797,0.000816,56383.0,56382.0,1.78328045]
[1725586270010,0.000816,56383.0,56382.0,1.80180419]
[1725586270232,0.000816,56383.0,56382.0,1.43645374]
[1725586270467,0.000816,56383.0,56382.0,0.72700774]
[1725586271390,0.178174,56383.0,56382.0,0.17192374]
[1725586271832,0.178174,56383.0,56382.0,0.18092374]
[1725586272269,0.178174,56383.0,56382.0,0.18892374]
[1725586273797,0.000816,56383.0,56382.0,0.18892374]
[1725586274250,0.000816,56383.0,56382.0,0.74755463]
[1725586274536,0.000816,56383.0,56382.0,1.10227763]
[1725586274753,0.000816,56383.0,56382.0,2.09718291]
[1725586274996,0.000816,56383.0,56382.0,2.11718291]
[1725586275226,0.000816,56383.0,56382.0,1.83680419]
[1725586275900,0.000816,56383.0,56382.0,1.83880419]
[1725586276135,0.000816,56391.0,56387.0,0.01062745]
[1725586276383,0.000816,56391.0,56390.0,0.97348]
[1725586276627,0.000816,56391.0,56390.0,0.99648]
[1725586276857,0.000816,56391.0,56390.0,0.641808]
[1725586277150,0.000816,56391.0,56390.0,0.65832013]
[1725586277864,0.000816,56391.0,56390.0,1.01299213]
[1725586278105,0.000816,56391.0,56390.0,0.65832013]
[1725586278333,0.000816,56391.0,56390.0,0.66332013]
[1725586278574,0.000816,56391.0,56390.0,1.01799213]
[1725586279078,0.00360671,56391.0,56390.0,0.10831213]
[1725586279267,0.18093971,56391.0,56390.0,0.02151213]
[1725586279526,0.53418755,56391.0,56390.0,0.02151213]
[1725586279749,0.88885355,56391.0,56390.0,0.02551213]
[1725586279970,0.89027171,56391.0,56390.0,0.02551213]
[1725586280200,0.89027171,56391.0,56390.0,0.009]
[1725586280443,0.89027171,56391.0,56390.0,0.02542457]
[1725586280668,0.53418755,56391.0,56390.0,0.009]
[1725586280979,0.53560571,56391.0,56390.0,0.02542457]
[1725586281092,0.53418755,56391.0,56390.0,0.009]
[1725586281323,0.53418755,56391.0,56390.0,0.02542457]
[1725586281554,0.53418755,56391.0,56390.0,0.009]
[1725586281791,0.53418755,56391.0,56390.0,0.02542457]
[1725586282021,0.000816,56391.0,56390.0,0.009]
[1725586282252,0.000816,56391.0,56390.0,0.02542457]
[1725586282486,0.000816,56391.0,56390.0,0.541008]
[1725586282722,0.000816,56391.0,56390.0,0.55743257]
[1725586283435,0.000816,56391.0,56390.0,1.06770457]
[1725586283968,0.000816,56391.0,56390.0,1.44537657]
[1725586293492,0.000816,56391.0,56390.0,2.18334802]
[1725586293718,0.000816,56391.0,56390.0,1.82925786]
[1725586295113,0.000816,56391.0,56390.0,1.82867602]
[1725586295357,0.000816,56391.0,56390.0,1.82004857]
[1725586295597,0.000816,56391.0,56390.0,1.82867602]
[1725586295822,0.000816,56391.0,56390.0,1.81504857]
[1725586296053,0.000816,56391.0,56390.0,1.81104857]
[1725586296341,0.000816,56391.0,56390.0,1.46787816]
[1725586296575,0.000816,56391.0,56390.0,1.46187816]
[1725586296801,0.000816,56391.0,56390.0,1.44787816]
[1725586297031,0.000816,56391.0,56390.0,1.45787816]
[1725586297272,0.000816,56391.0,56390.0,1.44787816]
[1725586297719,0.000816,56391.0,56390.0,1.46187816]
[1725586298170,0.000816,56391.0,56390.0,1.44787816]
[1725586298911,0.000816,56391.0,56390.0,1.09320616]
[1725586299122,0.000816,56391.0,56390.0,0.36336057]
[1725586299379,0.000816,56391.0,56390.0,0.18602457]
[1725586300566,0.532815,56391.0,56390.0,0.03042457]
[1725586300793,0.88885355,56391.0,56390.0,0.04442457]
[1725586301021,0.53418755,56391.0,56390.0,0.028]
[1725586301247,0.53418755,56391.0,56390.0,0.04438196]
[1725586301999,0.000816,56391.0,56390.0,0.04438196]
[1725586302696,0.000816,56391.0,56390.0,0.22171796]
[1725586303594,0.000816,56391.0,56390.0,0.57638996]
[1725586303829,0.000816,56391.0,56390.0,0.22171796]
[1725586304500,0.000816,56391.0,56390.0,0.04438196]
[1725586304712,0.000816,56391.0,56390.0,0.22171796]
[1725586305806,0.000816,56391.0,56390.0,0.57638996]
[1725586306733,0.000816,56391.0,56390.0,0.93106196]
[1725586308028,0.000816,56391.0,56390.0,1.08676196]
[1725586308693,0.000816,56391.0,56390.0,0.75508996]
[1725586308900,0.000816,56391.0,56390.0,0.37741796]
[1725586309109,0.000816,56391.0,56390.0,0.04438196]
[1725586309110,0.53560571,56391.0,56390.0,0.04438196]
[1725586309333,0.89027171,56391.0,56390.0,0.04438196]
[1725586309532,0.53560571,56391.0,56390.0,0.04438196]
[1725586309734,0.89027171,56391.0,56390.0,0.04438196]
[1725586310384,0.89027171,56391.0,56390.0,0.028]
[1725586310588,0.89027171,56391.0,56390.0,0.04440354]
[1725586313493,1.24493771,56391.0,56390.0,0.04440354]
[1725586314668,1.24493771,56391.0,56390.0,0.028]
[1725586315743,1.24493771,56391.0,56390.0,0.014]
[1725586315961,1.24493771,56391.0,56390.0,0.024]
[1725586316178,1.24493771,56391.0,56390.0,0.02291238]
[1725586316393,1.24493771,56391.0,56390.0,0.01]
[1725586316621,0.00141816,56387.0,56382.0,0.08741619]
[1725586316868,0.177356,56384.0,56382.0,0.26477719]
[1725586317091,0.00141816,56387.0,56383.0,0.01640354]
[1725586317307,0.00137255,56385.0,56383.0,0.19376054]
[1725586317519,0.17872555,56385.0,56383.0,0.01640354]
[1725586317934,0.00137255,56385.0,56383.0,0.19376054]
[1725586318162,0.53342955,56385.0,56383.0,0.01640354]
[1725586318383,0.17872555,56385.0,56383.0,0.01640354]
[1725586318598,0.18014371,56385.0,56383.0,0.01640354]
[1725586319226,0.177355,56384.0,56383.0,0.01640354]
[1725586319722,0.53348316,56384.0,56383.0,0.02840354]
[1725586319930,0.17877316,56384.0,56383.0,0.02840354]
[1725586320148,0.17877316,56384.0,56383.0,0.024]
[1725586320366,0.17876416,56387.0,56384.0,0.177355]
[1725586320576,0.00141816,56387.0,56386.0,0.532045]
[1725586320782,0.00141816,56388.0,56387.0,0.241044]
[1725586321027,0.00141816,56388.0,56387.0,0.328644]
[1725586321274,0.00141816,56388.0,56387.0,0.69978995]
[1725586321697,0.000816,56391.0,56387.0,0.16775495]
[1725586321915,0.000816,56391.0,56390.0,0.532008]
[1725586322354,0.000816,56391.0,56390.0,0.54846295]
[1725586322579,0.178149,56391.0,56390.0,0.01645495]
[1725586322807,0.53560571,56391.0,56390.0,0.01645495]
[1725586323030,0.53560571,56391.0,56376.0,0.09935216]
[1725586323031,0.00141816,56386.0,56382.0,0.1513]
[1725586323277,0.177352,56385.0,56383.0,0.177357]
[1725586323516,0.177352,56385.0,56383.0,0.19379555]
[1725586323517,0.17872455,56385.0,56383.0,0.19379555]
[1725586323751,0.00137255,56388.0,56386.0,0.177346]
[1725586323978,0.00137255,56388.0,56386.0,0.177347]
[1725586324192,0.17871555,56388.0,56386.0,0.177347]
[1725586324412,0.17871555,56388.0,56387.0,0.01643855]
[1725586324846,0.18013371,56388.0,56387.0,0.01643855]
[1725586325064,0.53481871,56388.0,56385.0,0.177351]
[1725586325285,0.177343,56388.0,56387.0,0.01643855]
[1725586325508,0.177343,56388.0,56386.0,0.177347]
[1725586325509,0.35604655,56390.0,56386.0,0.007]
[1725586325735,0.00141816,56394.0,56388.0,0.1513]
[1725586325962,0.00279071,56394.0,56390.0,0.354669]
[1725586326188,0.00279071,56394.0,56392.0,0.177327]
[1725586326189,0.00141816,56394.0,56392.0,0.177327]
[1725586326408,0.00137255,56393.0,56391.0,0.177332]
[1725586326634,0.00141816,56394.0,56392.0,0.177329]
[1725586326852,0.17874216,56394.0,56392.0,0.01644691]
[1725586327116,0.00141816,56394.0,56392.0,0.01644691]
[1725586327567,0.00141816,56394.0,56393.0,0.177326]
[1725586327992,0.00141816,56394.0,56393.0,0.19376044]
[1725586329177,0.00141816,56394.0,56393.0,0.01643444]
[1725586329402,0.00223316,56394.0,56393.0,0.01643444]
[1725586329675,0.17955616,56394.0,56393.0,0.01643444]
[1725586329905,0.00223316,56394.0,56393.0,0.01643444]
[1725586330123,0.00223316,56394.0,56393.0,0.19476044]
[1725586330344,0.00223316,56394.0,56393.0,0.01743444]
[1725586330586,0.91622271,56394.0,56393.0,0.01743444]
[1725586330840,1.27086971,56394.0,56393.0,0.01743444]
[1725586331074,1.27086971,56394.0,56393.0,0.001]
[1725586331350,1.62551671,56394.0,56393.0,0.001]
[1725586331584,1.62551671,56394.0,56390.0,0.00163]
[1725586331585,0.88945571,56391.0,56390.0,0.00163]
[1725586331829,1.67098771,56391.0,56390.0,0.00163]
[1725586332067,0.177421,56363.0,56362.0,0.0876]
[1725586332591,0.177421,56363.0,56362.0,0.10127313]
[1725586332837,0.88989571,56363.0,56362.0,0.01367313]
[1725586333324,0.88989571,56363.0,56356.0,0.0876]
[1725586333325,0.53232,56357.0,56356.0,0.0876]
[1725586333781,0.8872,56357.0,56356.0,0.0876]
[1725586334002,0.8872,56357.0,56356.0,0.10134671]
[1725586334229,0.88999071,56357.0,56356.0,0.0876]
[1725586334456,0.88999071,56357.0,56356.0,0.10134671]
[1725586334701,0.88999071,56357.0,56356.0,0.1016]
[1725586334929,0.53511071,56357.0,56356.0,0.11534671]
[1725586335418,0.00137255,56357.0,56356.0,0.11534671]
[1725586335637,0.53511071,56357.0,56356.0,0.11534671]
[1725586335879,0.53369255,56357.0,56356.0,0.11534671]
[1725586336119,0.00137255,56361.0,56356.0,0.11534671]
[1725586336362,0.041,56375.0,56357.0,0.35842636]
[1725586336363,0.00137255,56366.0,56357.0,0.35842636]
[1725586336622,0.00141816,56367.0,56357.0,0.35842636]
[1725586336623,0.00137255,56367.0,56358.0,0.442474]
[1725586336837,0.177416,56365.0,56360.0,0.35486]
[1725586337081,0.00137255,56367.0,56362.0,0.177423]
[1725586337082,0.177412,56366.0,56362.0,0.177423]
[1725586337365,0.00137255,56367.0,56363.0,0.354837]
[1725586337609,0.00279071,56367.0,56364.0,0.177417]
[1725586337855,0.00137255,56367.0,56366.0,0.32734792]
[1725586338077,0.1774,56370.0,56366.0,0.1513]
[1725586338301,0.177402,56369.0,56366.0,0.32871]
[1725586338581,0.00137255,56371.0,56366.0,0.506119]
[1725586338804,0.177404,56369.0,56366.0,0.1513]
[1725586339274,0.00137255,56367.0,56366.0,0.1513]
[1725586339516,0.177405,56368.0,56366.0,0.1523]
[1725586339957,0.177405,56368.0,56366.0,0.1513]
[1725586340213,0.17877155,56370.0,56366.0,0.1513]
[1725586340440,0.35479,56372.0,56366.0,0.33471]
[1725586340441,0.00137255,56368.0,56366.0,0.33471]
[1725586340650,0.00137255,56368.0,56366.0,0.1653]
[1725586340877,0.17877755,56368.0,56366.0,0.1573]
[1725586341100,0.00137255,56368.0,56366.0,0.1573]
[1725586341334,0.17877855,56368.0,56366.0,0.1643]
[1725586341775,0.17877855,56368.0,56366.0,0.1583]
[1725586341996,0.17877855,56368.0,56366.0,0.1653]
[1725586342497,0.00137255,56368.0,56366.0,0.1653]
[1725586342729,0.00137255,56374.0,56366.0,0.166932]
[1725586342956,0.00279071,56376.0,56375.0,0.177383]
[1725586343184,0.00137255,56376.0,56375.0,0.177383]
[1725586343637,0.00137255,56376.0,56374.0,0.264985]
[1725586344116,0.1,56378.0,56374.0,0.264985]
[1725586344343,0.177378,56377.0,56375.0,0.003]
[1725586344570,0.177374,56379.0,56375.0,0.177382]
[1725586344800,0.354734,56381.0,56375.0,0.177382]
[1725586344801,0.177374,56378.0,56375.0,0.177382]
[1725586345010,0.177383,56375.0,56374.0,0.0906]
[1725586345296,0.177383,56375.0,56374.0,0.0876]
[1725586345753,0.177382,56376.0,56374.0,0.0876]
[1725586346469,0.177383,56375.0,56374.0,0.005]
[1725586346667,0.354755,56377.0,56374.0,0.005]
[1725586346932,0.177382,56376.0,56372.0,0.177392]
[1725586347169,0.177382,56376.0,56374.0,0.005]
[1725586347393,0.177383,56375.0,56374.0,0.004]
[1725586347881,0.177383,56375.0,56374.0,0.009]
[1725586348101,0.177383,56375.0,56374.0,0.004]
[1725586348329,0.177362,56382.0,56379.0,0.177369]
[1725586348552,0.177362,56382.0,56378.0,0.063]
[1725586348553,0.277366,56381.0,56378.0,0.063]
[1725586348764,0.277366,56381.0,56378.0,0.240371]
[1725586348985,0.177367,56380.0,56379.0,0.09367483]
[1725586349168,0.1,56381.0,56379.0,0.09367483]
[1725586349419,0.1,56381.0,56379.0,0.27104383]
[1725586349639,0.277366,56381.0,56379.0,0.09367483]
[1725586349861,0.277366,56381.0,56379.0,0.27104483]
[1725586350100,0.01856707,56383.0,56380.0,0.177367]
[1725586350101,0.19592607,56383.0,56380.0,0.177367]
[1725586350316,0.19592607,56383.0,56379.0,0.27104483]
[1725586350317,0.277362,56382.0,56379.0,0.27104483]
[1725586350538,0.532085,56382.0,56381.0,0.01384454]
[1725586350758,0.532085,56382.0,56379.0,0.0798]
[1725586350759,0.177366,56381.0,56379.0,0.0798]
[1725586350988,0.01856707,56383.0,56379.0,0.0798]
[1725586351208,0.177362,56382.0,56379.0,0.0798]
[1725586351455,0.532102,56380.0,56379.0,0.0798]
[1725586351693,0.177375,56378.0,56375.0,0.0798]
[1725586351921,0.355529,56384.0,56375.0,0.257182]
[1725586352142,0.177376,56378.0,56375.0,0.0798]
[1725586352356,0.17738,56376.0,56375.0,0.0798]
[1725586352571,0.532159,56374.0,56373.0,0.063]
[1725586353085,0.886965,56372.0,56371.0,0.0798]
[1725586353315,0.532216,56368.0,56367.0,0.1428]
[1725586353539,0.177405,56368.0,56367.0,0.1428]
[1725586354469,0.532216,56368.0,56367.0,0.1428]
[1725586354685,0.3548,56370.0,56367.0,0.1568]
[1725586354909,0.177395,56372.0,56368.0,0.177405]
[1725586355377,0.177396,56371.0,56368.0,0.177405]
[1725586355610,0.177394,56372.0,56369.0,0.177401]
[1725586355845,0.177393,56372.0,56369.0,0.177401]
[1725586356062,0.354762,56376.0,56369.0,0.354804]
[1725586356299,0.000816,56384.0,56368.0,0.257203]
[1725586356300,0.177394,56372.0,56368.0,0.257203]
[1725586356531,0.177394,56372.0,56368.0,0.266203]
[1725586356793,0.354767,56375.0,56371.0,0.177396]
[1725586357039,0.00138959,56376.0,56372.0,0.0265476]
[1725586357287,0.00138959,56376.0,56375.0,0.61195]
[1725586357518,0.32894381,56389.0,56382.0,0.0798]
[1725586357778,0.0463672,56390.0,56382.0,0.0798]
[1725586357779,0.177358,56383.0,56382.0,0.0798]
[1725586358007,0.532074,56383.0,56382.0,0.0798]
[1725586358705,0.177374,56378.0,56377.0,0.0814]
[1725586358934,0.532122,56378.0,56377.0,0.0814]
[1725586359611,0.354713,56384.0,56377.0,0.436153]
[1725586359834,0.11856707,56390.0,56380.0,0.177367]
[1725586360049,0.354683,56389.0,56381.0,0.177362]
[1725586360295,0.354711,56384.0,56382.0,0.0874]
[1725586360509,0.354711,56384.0,56382.0,0.0814]
[1725586360510,0.177358,56383.0,56382.0,0.0814]
[1725586360768,0.354691,56387.0,56382.0,0.0814]
[1725586360978,0.1,56386.0,56383.0,0.0631]
[1725586361195,0.177349,56386.0,56383.0,0.240456]
[1725586361459,0.354657,56393.0,56383.0,0.417815]
[1725586361676,0.354657,56393.0,56384.0,0.532062]
[1725586361677,0.177345,56388.0,56384.0,0.532062]
[1725586361900,0.354657,56393.0,56384.0,0.532062]
[1725586361901,0.354667,56391.0,56386.0,0.177348]
[1725586362139,0.177339,56389.0,56386.0,0.177348]
[1725586362584,0.177343,56388.0,56385.0,0.17735]
[1725586362826,0.19590607,56390.0,56386.0,0.177347]
[1725586363047,0.17734,56389.0,56386.0,0.177347]
[1725586363274,0.27734,56389.0,56386.0,0.177347]
[1725586363741,0.277339,56389.0,56386.0,0.177347]
[1725586365367,0.177342,56388.0,56386.0,0.177347]
[1725586365591,0.1,56389.0,56387.0,0.01376044]
[1725586365822,0.01856707,56390.0,56388.0,0.177341]
[1725586366041,0.19590307,56390.0,56388.0,0.177341]
[1725586366183,0.19590307,56390.0,56389.0,0.01231324]
[1725586366787,0.177311,56398.0,56390.0,0.0631]
[1725586367012,0.177313,56398.0,56393.0,0.613379]
[1725586367232,0.00082,56399.0,56393.0,0.968032]
[1725586367455,0.00082,56399.0,56393.0,1.33617571]
[1725586367702,0.00082,56399.0,56393.0,1.42227571]
[1725586370057,0.00082,56399.0,56393.0,1.44627571]
[1725586370292,0.00082,56399.0,56393.0,1.43627571]
[1725586370529,0.00082,56399.0,56393.0,1.45027571]
[1725586372048,0.00082,56399.0,56393.0,1.80492871]
[1725586372670,0.00082,56399.0,56393.0,1.45027571]
[1725586376283,0.00082,56399.0,56393.0,1.44813051]
[1725586378741,0.00082,56399.0,56393.0,1.81278351]
[1725586379361,0.00082,56399.0,56393.0,1.81378351]
[1725586380473,0.00082,56399.0,56393.0,1.81278351]
[1725586380904,0.354543,56411.0,56396.0,0.1495]
[1725586381150,0.177275,56410.0,56407.0,0.177281]
[1725586381365,0.01082,56425.0,56397.0,0.0974747]
[1725586381366,0.404958,56409.0,56397.0,0.0974747]
[1725586381591,0.404958,56409.0,56398.0,0.03636559]
[1725586381592,0.0504,56409.0,56398.0,0.03636559]
[1725586381815,0.0504,56409.0,56400.0,0.354607]
[1725586381816,0.354568,56407.0,56400.0,0.354607]
[1725586382037,0.177292,56404.0,56401.0,0.1773]
[1725586382271,0.0504,56409.0,56402.0,0.177297]
[1725586382272,0.177289,56405.0,56402.0,0.177297]
[1725586382524,0.177289,56405.0,56402.0,0.19066259]
[1725586382772,0.354572,56406.0,56402.0,0.01336559]
[1725586383222,0.177291,56405.0,56402.0,0.19066259]
[1725586383499,0.177289,56405.0,56402.0,0.19066259]
[1725586383725,0.531859,56406.0,56403.0,0.177295]
[1725586384198,0.531859,56406.0,56404.0,0.01336975]
[1725586384430,0.354561,56408.0,56404.0,0.01336975]
[1725586384431,0.17728,56408.0,56405.0,0.177288]
[1725586384694,0.02235974,56418.0,56404.0,0.01336975]
[1725586384695,0.354534,56413.0,56406.0,0.1495]
[1725586384956,0.177275,56410.0,56407.0,0.177282]
[1725586385185,0.177275,56410.0,56407.0,0.19065175]
[1725586385425,0.531815,56411.0,56408.0,0.177279]
[1725586385668,0.177275,56410.0,56407.0,0.19065175]
[1725586385907,0.177275,56410.0,56407.0,0.177282]
[1725586386147,0.177275,56410.0,56408.0,0.01336975]
[1725586387571,0.177276,56409.0,56408.0,0.01336975]
[1725586387795,0.531829,56409.0,56408.0,0.01336975]
[1725586388027,0.177283,56407.0,56404.0,0.531875]
[1725586388520,0.177283,56407.0,56404.0,0.177291]
[1725586388981,0.177283,56407.0,56405.0,0.177288]
[1725586389448,0.17728,56408.0,56406.0,0.177285]
[1725586389676,0.17728,56408.0,56405.0,0.177288]
[1725586389903,0.17728,56408.0,56406.0,0.177285]
[1725586390136,0.17728,56408.0,56405.0,0.354578]
[1725586390137,0.17728,56408.0,56405.0,0.179288]
[1725586390365,0.177283,56407.0,56405.0,0.179288]
[1725586390595,0.17728,56408.0,56405.0,0.180288]
[1725586390822,0.17728,56408.0,56405.0,0.179288]
[1725586391541,0.17728,56408.0,56405.0,0.177288]
[1725586391763,0.354553,56409.0,56403.0,0.354591]
[1725586391764,0.53183,56409.0,56406.0,0.177286]
[1725586391987,0.177274,56410.0,56407.0,0.177282]
[1725586392210,0.1,56412.0,56408.0,0.1578]
[1725586392441,0.177271,56411.0,56408.0,0.1578]
[1725586392669,0.177267,56412.0,56409.0,0.177274]
[1725586392917,0.1,56415.0,56405.0,0.354573]
[1725586393130,0.177278,56409.0,56406.0,0.177285]
[1725586393609,0.177278,56409.0,56405.0,0.354573]
[1725586393610,0.177279,56408.0,56405.0,0.531861]
[1725586393822,0.177279,56408.0,56385.0,0.354699]
[1725586393823,0.0847,56411.0,56400.0,0.354608]
[1725586394064,0.354569,56407.0,56403.0,0.177295]
[1725586394293,0.354547,56410.0,56402.0,0.177297]
[1725586394294,0.17729,56405.0,56402.0,0.177297]
[1725586394516,0.17729,56405.0,56403.0,0.177294]
[1725586394962,0.177287,56406.0,56400.0,0.354604]
[1725586395184,0.177283,56407.0,56404.0,0.177289]
[1725586395609,0.177286,56406.0,56404.0,0.177289]
[1725586395846,0.177286,56406.0,56403.0,0.181294]
[1725586396067,0.177286,56406.0,56405.0,0.01334469]
[1725586396325,0.177286,56406.0,56405.0,0.01197281]
[1725586396797,0.35456,56408.0,56405.0,0.01197281]
[1725586396798,0.177284,56407.0,56405.0,0.01197281]
[1725586397031,0.000815,56412.0,56406.0,0.1578]
[1725586397243,0.177271,56411.0,56409.0,0.177276]
[1725586397455,0.35535,56412.0,56409.0,0.177276]
[1725586397669,0.177271,56411.0,56408.0,0.531837]
[1725586397895,0.177271,56411.0,56410.0,0.01311604]
[1725586398110,0.177271,56411.0,56409.0,0.177276]
[1725586398335,0.177271,56411.0,56410.0,0.01311604]
[1725586398751,0.531811,56411.0,56410.0,0.01311604]
[1725586399042,0.35535,56412.0,56411.0,0.1578]
[1725586399043,0.000815,56412.0,56411.0,0.1578]
[1725586399219,0.000815,56412.0,56411.0,1.07069482]
[1725586399427,0.000815,56412.0,56411.0,1.42169]
[1725586400138,0.000815,56412.0,56411.0,1.06715]
[1725586400344,0.000815,56412.0,56411.0,0.68961]
[1725586400564,0.000815,56412.0,56411.0,0.1718]
[1725586400767,0.000815,56412.0,56411.0,0.014]
[1725586400995,0.532616,56412.0,56411.0,0.014]
[1725586401661,0.532616,56412.0,56411.0,0.028]
[1725586402084,0.88715,56412.0,56411.0,0.028]
[1725586402297,0.532616,56412.0,56411.0,0.014]
[1725586402750,0.532616,56412.0,56411.0,0.028]
[1725586402969,0.88715,56412.0,56411.0,0.014]
[1725586403176,0.532616,56412.0,56411.0,0.028]
[1725586403911,0.532616,56412.0,56411.0,0.04106944]
[1725586404567,0.88715,56412.0,56411.0,0.04106944]
[1725586404972,0.88715,56412.0,56411.0,0.028]
[1725586405228,0.88715,56412.0,56411.0,0.04106944]
[1725586405863,0.532616,56412.0,56411.0,0.04106944]
[1725586406513,0.178082,56412.0,56411.0,0.04106944]
[1725586406734,0.178082,56412.0,56411.0,0.11236944]
[1725586406940,0.000815,56412.0,56411.0,0.37183944]
[1725586407359,0.000815,56412.0,56411.0,0.72637944]
[1725586407541,0.000815,56412.0,56411.0,1.10391944]
[1725586410305,0.000815,56412.0,56411.0,1.10391944]
[1725586412739,0.000815,56412.0,56411.0,0.19456944]
[1725586413195,0.000815,56412.0,56411.0,0.72637944]
[1725586413427,0.000815,56412.0,56411.0,1.43545944]
[1725586413646,0.000815,56412.0,56411.0,1.45845944]
[1725586416119,0.000815,56412.0,56411.0,1.45636041]
[1725586421321,0.177224,56426.0,56423.0,0.264132]
[1725586421567,0.52650515,56430.0,56423.0,0.264132]
[1725586421568,0.177227,56425.0,56423.0,0.264132]
[1725586421789,0.354452,56425.0,56424.0,0.01304273]
[1725586422009,0.531678,56425.0,56424.0,0.01304273]
[1725586422229,0.177237,56422.0,56419.0,0.177244]
[1725586422462,0.35446,56424.0,56418.0,0.354492]
[1725586422671,0.354446,56426.0,56419.0,0.35803364]
[1725586422916,0.354452,56425.0,56422.0,0.177234]
[1725586423317,0.17723,56424.0,56422.0,0.177234]
[1725586424438,0.177227,56425.0,56422.0,0.177234]
[1725586424663,0.177229,56424.0,56423.0,0.001]
[1725586425116,0.177229,56424.0,56422.0,0.179234]
[1725586425330,0.177229,56424.0,56422.0,0.004]
[1725586425544,0.177229,56424.0,56423.0,0.01303303]
[1725586425987,0.177229,56424.0,56423.0,0.01703303]
[1725586426214,0.177229,56424.0,56423.0,0.002]
[1725586426872,0.531688,56424.0,56423.0,0.002]
[1725586427119,0.177229,56424.0,56423.0,0.002]
[1725586427348,0.531688,56424.0,56423.0,0.002]
[1725586427597,0.886147,56424.0,56423.0,0.002]
[1725586427827,0.917347,56424.0,56423.0,0.002]
[1725586428255,1.271806,56424.0,56423.0,0.002]
[1725586428470,1.271806,56424.0,56423.0,0.004]
[1725586428915,0.917347,56424.0,56423.0,0.004]
[1725586429427,1.271806,56424.0,56423.0,0.004]
[1725586429651,1.371806,56424.0,56423.0,0.004]
[1725586429890,1.371806,56424.0,56423.0,0.005632]
[1725586430347,1.371806,56424.0,56423.0,0.003632]
[1725586430802,1.371806,56424.0,56423.0,0.002632]
[1725586431044,1.371806,56424.0,56423.0,0.003632]
[1725586431266,1.371806,56424.0,56423.0,0.001632]
[1725586431487,1.371806,56424.0,56423.0,0.002632]
[1725586431705,1.371806,56424.0,56423.0,0.003632]
[1725586433306,1.84079193,56424.0,56423.0,0.003632]
[1725586433520,4.19091593,56424.0,56423.0,0.003632]
[1725586433745,4.0497656,56424.0,56423.0,0.003632]
[1725586433976,3.88559405,56424.0,56423.0,0.003632]
[1725586434209,2.39725005,56424.0,56423.0,0.002632]
[1725586434507,2.39725005,56424.0,56423.0,0.001632]
[1725586434508,1.94806872,56424.0,56423.0,0.001632]
[1725586435214,2.02781257,56424.0,56423.0,0.001632]
[1725586435436,1.94806872,56424.0,56423.0,0.001632]
[1725586436346,0.531801,56412.0,56411.0,0.0707]
[1725586437075,1.240869,56412.0,56411.0,0.0707]
[1725586437310,0.886335,56412.0,56411.0,0.0707]
[1725586437772,0.886335,56412.0,56411.0,0.0807]
[1725586438004,0.66592425,56412.0,56411.0,0.0807]
[1725586438256,0.66592425,56412.0,56411.0,0.0907]
[1725586438257,0.84319125,56412.0,56411.0,0.0907]
[1725586441194,0.84319125,56412.0,56411.0,0.10373604]
[1725586441632,0.84319125,56412.0,56411.0,0.03303604]
[1725586441859,0.84319125,56412.0,56411.0,0.02]
[1725586442105,0.84319125,56412.0,56411.0,0.03466804]
[1725586442327,0.84285888,56412.0,56411.0,0.03310281]
[1725586443033,0.48832488,56412.0,56411.0,0.03310281]
[1725586444156,0.84285888,56412.0,56411.0,0.10380281]
[1725586444381,0.177267,56412.0,56411.0,0.10380281]
[1725586444672,0.208467,56412.0,56411.0,0.03310281]
[1725586444877,1.762629,56412.0,56411.0,0.03310281]